fUSD/lending_fUSD_20260703
["ID","MTS","AMOUNT","RATE_DAILY","PERIOD"]
[426938727,1783032638000,-68792.32,0.0002,2]
[426938726,1783032638000,-17069.5707,0.00019999,2]
[426938724,1783032638000,-197.34496834,0.00019953,2]
[426938719,1783032638000,-373.29612667,0.000199,2]
[426938728,1783032638000,-195.63,0.0002,14]
[426938736,1783032638000,-500.0,0.00020098,2]
[426938740,1783032638000,-1487.17900673,0.000201,2]
[426938737,1783032638000,-263.9349192,0.00020099,2]
[426938738,1783032638000,-267562.9861612,0.00020099,2]
[426938739,1783032638000,-3378.1600256,0.00020099,2]
[426938743,1783032638000,-17433.32832484,0.00020104,2]
[426938742,1783032638000,-10084.26236772,0.000201,2]
[426938746,1783032638000,-500.0,0.00020133,2]
[426938748,1783032638000,-500.0,0.00020151,2]
[426938749,1783032638000,-486.56900621,0.00020152,2]
[426938747,1783032638000,-500.0,0.00020151,2]
[426938741,1783032638000,-373.29612667,0.000201,2]
[426938744,1783032638000,-37894.7321552,0.00020106,2]
[426938723,1783032638000,-2917.68759319,0.0001995,15]
[426938732,1783032638000,-500.0,0.00020098,2]
[426938720,1783032638000,-10084.26236772,0.000199,2]
[426938709,1783032638000,-896.0,0.00019898,2]
[426938721,1783032638000,-632.33,0.0001992,2]
[426938697,1783032638000,-150.0,0.000197,2]
[426938698,1783032638000,-373.29612667,0.000197,2]
[426938704,1783032638000,-160.0,0.00019776,2]
[426938701,1783032638000,-150.0,0.000197,2]
[426938695,1783032638000,-1487.17900673,0.000197,2]
[426938699,1783032638000,-150.0,0.000197,2]
[426938703,1783032638000,-259.20868584,0.000197,2]
[426938700,1783032638000,-10084.26236772,0.000197,2]
[426938696,1783032638000,-896.48344332,0.000197,2]
[426938702,1783032638000,-151.0,0.000197,2]
[426938694,1783032638000,-461052.62024775,0.000196,2]
[426938705,1783032638000,-160.0,0.00019776,2]
[426938706,1783032638000,-216.69616408,0.00019778,2]
[426938708,1783032638000,-1301.12264038,0.00019898,2]
[426938714,1783032638000,-898.0,0.00019898,2]
[426938745,1783032638000,-151.13538036,0.00020133,2]
[426938711,1783032638000,-908.0,0.00019898,2]
[426938710,1783032638000,-916.0,0.00019898,2]
[426938715,1783032638000,-917.0,0.00019898,2]
[426938712,1783032638000,-893.0,0.00019898,2]
[426938707,1783032638000,-643.81,0.00019841,2]
[426938713,1783032638000,-885.0,0.00019898,2]
[426938716,1783032638000,-150.0,0.00019898,2]
[426938718,1783032638000,-1487.17900673,0.000199,2]
[426938717,1783032638000,-883.0,0.00019898,2]
[426938722,1783032638000,-933.23,0.00019921,2]
[426938750,1783032638000,-577.72670713,0.00020152,2]
[426938733,1783032638000,-500.0,0.00020098,2]
[426938753,1783032638000,-500.0,0.00020152,2]
[426938783,1783032638000,-225.49,0.00020327,2]
[426938780,1783032638000,-373.29612667,0.000203,2]
[426938785,1783032638000,-200.0,0.00020355,2]
[426938797,1783032638000,-150.0,0.0002058,2]
[426938796,1783032638000,-200.0,0.00020558,2]
[426938786,1783032638000,-209.36,0.00020371,2]
[426938793,1783032638000,-10201.1926559,0.000205,2]
[426938788,1783032638000,-164.13979251,0.00020395,2]
[426938790,1783032638000,-1487.17900673,0.000205,2]
[426938787,1783032638000,-500.0,0.00020395,2]
[426938791,1783032638000,-373.29612667,0.000205,2]
[426938792,1783032638000,-10084.26236772,0.000205,2]
[426938779,1783032638000,-1487.17900673,0.000203,2]
[426938798,1783032638000,-150.0,0.0002058,2]
[426938794,1783032638000,-166.66,0.00020511,2]
[426938804,1783032638000,-200.0,0.00020764,2]
[426938800,1783032638000,-150.0,0.0002058,2]
[426938803,1783032638000,-220.83058827,0.00020705,10]
[426938805,1783032638000,-643.81,0.00020786,2]
[426938802,1783032638000,-484.3679579,0.00020699,2]
[426938807,1783032638000,-603.46,0.0002087,2]
[426938799,1783032638000,-150.0,0.0002058,2]
[426938801,1783032638000,-150.0,0.0002058,2]
[426938808,1783032638000,-500.63745872,0.00020899,2]
[426938754,1783032638000,-500.0,0.00020152,2]
[426938806,1783032638000,-10084.26236772,0.000208,2]
[426938795,1783032638000,-9981.8,0.00020548,2]
[426938778,1783032638000,-510.89655649,0.00020299,2]
[426938789,1783032638000,-894.0,0.0002048,2]
[426938782,1783032638000,-643.81,0.00020313,2]
[426938751,1783032638000,-500.0,0.00020152,2]
[426938752,1783032638000,-500.0,0.00020152,2]
[426938781,1783032638000,-10084.26236772,0.000203,2]
[426938756,1783032638000,-500.0,0.00020152,2]
[426938755,1783032638000,-500.0,0.00020152,2]
[426938758,1783032638000,-500.0,0.00020152,2]
[426938759,1783032638000,-500.0,0.00020152,2]
[426938757,1783032638000,-500.0,0.00020152,2]
[426938760,1783032638000,-500.0,0.00020152,2]
[426938761,1783032638000,-500.0,0.00020152,2]
[426938764,1783032638000,-500.0,0.00020152,2]
[426938770,1783032638000,-188.99,0.00020153,2]
[426938765,1783032638000,-908.0,0.00020153,2]
[426938762,1783032638000,-600.0,0.00020152,2]
[426938769,1783032638000,-361.01117081,0.00020153,2]
[426938775,1783032638000,-500.0,0.00020299,2]
[426938773,1783032638000,-200.0,0.00020153,2]
[426938766,1783032638000,-899.0,0.00020153,2]
[426938776,1783032638000,-500.0,0.00020299,2]
[426938777,1783032638000,-500.0,0.00020299,2]
[426938772,1783032638000,-200.0,0.00020153,2]
[426938784,1783032638000,-200.0,0.00020355,2]
[426938763,1783032638000,-500.0,0.00020152,2]
[426938768,1783032638000,-274.08,0.00020153,2]
[426938767,1783032638000,-308.83,0.00020153,2]
[426938771,1783032638000,-200.0,0.00020153,2]
[426938774,1783032638000,-500.0,0.00020299,2]
[426938846,1783032639000,-166.66,0.00022416,2]
[426938850,1783032639000,-10084.26236772,0.000225,2]
[426938852,1783032639000,-10084.26236772,0.000227,2]
[426938848,1783032639000,-780.7,0.00022466,2]
[426938845,1783032639000,-2114.8534468,0.00022375,2]
[426938841,1783032639000,-10084.26236772,0.00022,2]
[426938844,1783032639000,-10084.26236772,0.000222,2]
[426938840,1783032639000,-206.0,0.00021976,2]
[426938842,1783032639000,-2981.61,0.00022,2]
[426938862,1783032639000,-209.36,0.00022917,2]
[426938843,1783032639000,-2176.54,0.00022,7]
[426938847,1783032639000,-899.09,0.00022466,2]
[426938863,1783032639000,-500.0,0.0002293,2]
[426938864,1783032639000,-500.0,0.0002293,2]
[426938855,1783032639000,-500.0,0.00022878,2]
[426938853,1783032639000,-459.40802069,0.00022836,2]
[426938851,1783032639000,-500.0,0.00022685,2]
[426938856,1783032639000,-500.0,0.00022878,2]
[426938859,1783032639000,-10084.26236772,0.000229,2]
[426938860,1783032639000,-559.94,0.00022909,2]
[426938857,1783032639000,-500.0,0.00022878,2]
[426938861,1783032639000,-500.0,0.00022917,2]
[426938858,1783032639000,-211.60544451,0.0002288,4]
[426938867,1783032639000,-151.0,0.00023,2]
[426938866,1783032639000,-500.0,0.0002293,2]
[426938838,1783032639000,-5000.0,0.00021918,2]
[426938870,1783032639000,-151.0,0.00023,2]
[426938854,1783032639000,-500.0,0.00022878,2]
[426938849,1783032639000,-1012.39,0.00022466,2]
[426938809,1783032639000,-600.0,0.00020899,3]
[426938833,1783032639000,-10084.26236772,0.000218,2]
[426938868,1783032639000,-151.0,0.00023,2]
[426938810,1783032639000,-155.0017199,0.00020927,120]
[426938811,1783032639000,-2114.8534468,0.00020973,2]
[426938813,1783032639000,-10084.26236772,0.00021,2]
[426938823,1783032639000,-4948.17,0.0002137,2]
[426938812,1783032639000,-857.44951903,0.00021,2]
[426938814,1783032639000,-2766.52303192,0.00021,2]
[426938815,1783032639000,-150.0,0.00021,2]
[426938816,1783032639000,-2000.0,0.00021068,2]
[426938817,1783032639000,-563.0,0.00021123,2]
[426938818,1783032639000,-166.66,0.00021146,2]
[426938819,1783032639000,-857.44951903,0.000212,2]
[426938822,1783032639000,-514.06560759,0.00021306,2]
[426938839,1783032639000,-150.0,0.00021918,2]
[426938820,1783032639000,-10084.26236772,0.000212,2]
[426938824,1783032639000,-857.44951903,0.000214,2]
[426938832,1783032639000,-166.66,0.00021781,2]
[426938830,1783032639000,-10084.26236772,0.000216,2]
[426938825,1783032639000,-10084.26236772,0.000214,2]
[426938834,1783032639000,-151.47,0.00021848,2]
[426938828,1783032639000,-9592.89,0.00021558,2]
[426938826,1783032639000,-213.735553,0.00021423,2]
[426938831,1783032639000,-882.86226243,0.00021741,2]
[426938827,1783032639000,-220.83058827,0.00021527,10]
[426938829,1783032639000,-857.44951903,0.000216,2]
[426938837,1783032639000,-857.44951903,0.000219,2]
[426938835,1783032639000,-1854.45592348,0.0002186,2]
[426938836,1783032639000,-691.0,0.000219,7]
[426938821,1783032639000,-1522.63,0.000213,2]
[426938869,1783032639000,-219.04743701,0.00023,2]
[426938889,1783032639000,-9999.99,0.00023368,2]
[426938872,1783032639000,-151.0,0.00023,2]
[426938904,1783032639000,-383.0,0.00024,2]
[426938906,1783032639000,-158.0,0.00024,2]
[426938905,1783032639000,-255.0,0.00024,2]
[426938907,1783032639000,-336.0,0.00024,2]
[426938908,1783032639000,-155.0,0.00024,2]
[426938912,1783032639000,-2277.11867751,0.00024,2]
[426938910,1783032639000,-155.0,0.00024,2]
[426938909,1783032639000,-157.0,0.00024,2]
[426938911,1783032639000,-157.0,0.00024,2]
[426938915,1783032639000,-150.0,0.00024164,2]
[426938925,1783032639000,-1000.0,0.00024658,2]
[426938919,1783032639000,-939.266,0.00024246,30]
[426938917,1783032639000,-600.0,0.00024227,4]
[426938902,1783032639000,-2114.8534468,0.00023778,2]
[426938916,1783032639000,-209.24,0.00024174,2]
[426938922,1783032639000,-500.0,0.00024658,2]
[426938920,1783032639000,-2277.11867751,0.00024333,2]
[426938923,1783032639000,-501.451067,0.00024658,2]
[426938921,1783032639000,-154.98925474,0.00024397,2]
[426938926,1783032639000,-164.28,0.00024658,2]
[426938928,1783032639000,-150.0,0.00024698,5]
[426938927,1783032639000,-2277.11867751,0.00024667,2]
[426938929,1783032639000,-514.06560759,0.00024777,2]
[426938932,1783032639000,-195.66892158,0.00024905,2]
[426938930,1783032639000,-205.30620671,0.00024905,2]
[426938933,1783032639000,-159.32217966,0.00024905,2]
[426938931,1783032639000,-161.92422126,0.00024905,2]
[426938871,1783032639000,-151.0,0.00023,2]
[426938918,1783032639000,-500.0,0.00024246,30]
[426938914,1783032639000,-158.0,0.00024,2]
[426938924,1783032639000,-169.7,0.00024658,2]
[426938897,1783032639000,-422.15,0.00023368,2]
[426938903,1783032639000,-882.86226243,0.00023913,2]
[426938873,1783032639000,-2277.11867751,0.00023,2]
[426938876,1783032639000,-292.01098958,0.00023113,7]
[426938865,1783032639000,-500.0,0.0002293,2]
[426938875,1783032639000,-514.06560759,0.00023042,2]
[426938878,1783032639000,-603.46,0.00023189,2]
[426938888,1783032639000,-53671.87,0.00023368,2]
[426938877,1783032639000,-164.45,0.00023176,2]
[426938883,1783032639000,-9999.99,0.00023368,2]
[426938886,1783032639000,-9999.99,0.00023368,2]
[426938885,1783032639000,-999.99,0.00023368,2]
[426938884,1783032639000,-1285.51,0.00023368,2]
[426938879,1783032639000,-2277.11867751,0.00023333,2]
[426938882,1783032639000,-299.99,0.00023368,7]
[426938881,1783032639000,-5813.91,0.00023368,2]
[426938880,1783032639000,-1392.6,0.00023368,2]
[426938899,1783032639000,-2000.0,0.00023409,2]
[426938874,1783032639000,-150.0,0.00023014,2]
[426938898,1783032639000,-499.99,0.00023368,2]
[426938900,1783032639000,-2277.11867751,0.00023667,2]
[426938896,1783032639000,-887.95,0.00023368,2]
[426938901,1783032639000,-151.47,0.00023669,2]
[426938893,1783032639000,-26151.62,0.00023368,2]
[426938895,1783032639000,-9999.99,0.00023368,2]
[426938892,1783032639000,-4999.99,0.00023368,2]
[426938891,1783032639000,-34333.43,0.00023368,2]
[426938890,1783032639000,-14241.98,0.00023368,2]
[426938887,1783032639000,-150.99,0.00023368,2]
[426938894,1783032639000,-9999.99,0.00023368,2]
[426938954,1783032640000,-625.45803585,0.00025611,2]
[426938961,1783032640000,-2000.0,0.0002575,2]
[426938952,1783032640000,-603.46,0.00025508,120]
[426938950,1783032640000,-209.36,0.00025464,120]
[426938953,1783032640000,-547.0,0.0002552,2]
[426938956,1783032640000,-459.40802069,0.00025619,2]
[426938964,1783032640000,-500.0,0.00025999,2]
[426938958,1783032640000,-150.0,0.00025675,7]
[426938960,1783032640000,-1573.0,0.00025734,5]
[426938957,1783032640000,-2277.11867751,0.00025667,2]
[426938955,1783032640000,-169.00435228,0.00025611,2]
[426938962,1783032640000,-154.98925467,0.00025857,2]
[426938959,1783032640000,-223.0,0.00025686,5]
[426938951,1783032640000,-151.47,0.00025489,2]
[426938934,1783032640000,-184.77286323,0.00024905,2]
[426938948,1783032640000,-150.0,0.00025373,2]
[426938965,1783032640000,-500.0,0.00025999,2]
[426938936,1783032640000,-383.0,0.00025,2]
[426938935,1783032640000,-168.30297297,0.00024944,2]
[426938937,1783032640000,-255.0,0.00025,2]
[426938938,1783032640000,-336.0,0.00025,2]
[426938944,1783032640000,-2277.11867751,0.00025,2]
[426938946,1783032640000,-1030.52010017,0.00025193,2]
[426938942,1783032640000,-40513.21,0.00025,2]
[426938945,1783032640000,-2114.8534468,0.00025181,2]
[426938943,1783032640000,-157.0,0.00025,2]
[426938940,1783032640000,-157.0,0.00025,2]
[426938949,1783032640000,-152.0,0.00025414,3]
[426938939,1783032640000,-155.0,0.00025,2]
[426938947,1783032640000,-2277.11867751,0.00025333,2]
[426938941,1783032640000,-155.0,0.00025,2]
[426938966,1783032640000,-500.0,0.00025999,2]
[426938975,1783032640000,-48616.05,0.00026,2]
[426938974,1783032640000,-155.0,0.00026,2]
[426938963,1783032640000,-625.45803585,0.00025885,2]
[426938990,1783032640000,-318.64435932,0.00026158,2]
[426939000,1783032640000,-199.59355724,0.00026199,2]
[426938996,1783032640000,-165.41971631,0.00026199,2]
[426938997,1783032640000,-196.57276011,0.00026199,2]
[426938994,1783032640000,-169.00435228,0.00026159,2]
[426938999,1783032640000,-156.57701298,0.00026199,2]
[426938993,1783032640000,-625.45803585,0.00026159,2]
[426938992,1783032640000,-238.02478009,0.00026158,2]
[426938989,1783032640000,-211.18652987,0.00026158,2]
[426938991,1783032640000,-203.39902853,0.00026158,2]
[426938985,1783032640000,-410.61241342,0.00026158,2]
[426938986,1783032640000,-356.03091132,0.00026158,2]
[426938983,1783032640000,-746.0,0.000261,2]
[426938984,1783032640000,-770.62162156,0.00026113,14]
[426938998,1783032640000,-154.80327893,0.00026199,2]
[426938987,1783032640000,-323.84844251,0.00026158,2]
[426938980,1783032640000,-647.0,0.000261,2]
[426938968,1783032640000,-383.0,0.00026,2]
[426938970,1783032640000,-336.0,0.00026,2]
[426938969,1783032640000,-255.0,0.00026,2]
[426938972,1783032640000,-157.0,0.00026,2]
[426938973,1783032640000,-12567.40099056,0.00026,10]
[426938967,1783032640000,-500.0,0.00025999,2]
[426938982,1783032640000,-7454.0,0.000261,2]
[426938981,1783032640000,-162.0,0.000261,2]
[426938977,1783032640000,-2277.11867751,0.00026,2]
[426938988,1783032640000,-391.33784317,0.00026158,2]
[426938971,1783032640000,-163.0,0.00026,2]
[426938979,1783032640000,-882.86226243,0.00026084,2]
[426938978,1783032640000,-1042.05,0.0002603,2]
[426938976,1783032640000,-157.0,0.00026,2]
[426939100,1783032641000,-504.90891891,0.00027036,2]
[426939093,1783032641000,-399.18711448,0.00027036,2]
[426939096,1783032641000,-320.91670503,0.00027036,2]
[426939089,1783032641000,-393.14552022,0.00027036,2]
[426939092,1783032641000,-224.03841985,0.00027036,2]
[426939094,1783032641000,-421.84317328,0.00027036,2]
[426939097,1783032641000,-388.12782392,0.00027036,2]
[426939098,1783032641000,-410.44378032,0.00027036,2]
[426939095,1783032641000,-159.77460003,0.00027036,2]
[426939099,1783032641000,-371.01751019,0.00027036,2]
[426939090,1783032641000,-309.60655787,0.00027036,2]
[426939091,1783032641000,-313.15402596,0.00027036,2]
[426939107,1783032641000,-307.30883989,0.00027036,2]
[426939105,1783032641000,-315.62352657,0.00027036,2]
[426939104,1783032641000,-203.38720443,0.00027036,2]
[426939101,1783032641000,-407.66727724,0.00027036,2]
[426939103,1783032641000,-324.54612217,0.00027036,2]
[426939106,1783032641000,-230.95302907,0.00027036,2]
[426939109,1783032641000,-397.63290622,0.00027036,2]
[426939108,1783032641000,-447.77338226,0.00027036,2]
[426939110,1783032641000,-179.66101903,0.00027036,2]
[426939113,1783032641000,-152.0,0.00027136,4]
[426939111,1783032641000,-150.93828308,0.00027036,2]
[426939112,1783032641000,-1359.46788514,0.00027113,14]
[426939088,1783032641000,-544.35331149,0.00027036,2]
[426939102,1783032641000,-354.08391687,0.00027036,2]
[426939085,1783032641000,-380.63327387,0.00027036,2]
[426939073,1783032641000,-587.00676475,0.00026994,2]
[426939082,1783032641000,-171.61468301,0.00027,2]
[426939063,1783032641000,-153.44759845,0.00026994,2]
[426939062,1783032641000,-223.93970774,0.00026994,2]
[426939059,1783032641000,-190.74835733,0.00026994,2]
[426939061,1783032641000,-188.09745689,0.00026994,2]
[426939060,1783032641000,-153.37221337,0.00026994,2]
[426939064,1783032641000,-218.96343323,0.00026994,2]
[426939066,1783032641000,-335.89223833,0.00026994,2]
[426939070,1783032641000,-534.04636698,0.00026994,2]
[426939067,1783032641000,-188.51710699,0.00026994,2]
[426939069,1783032641000,-615.91862013,0.00026994,2]
[426939068,1783032641000,-187.24489941,0.00026994,2]
[426939065,1783032641000,-248.71280734,0.00026994,2]
[426939071,1783032641000,-485.77266377,0.00026994,2]
[426939074,1783032641000,-422.37305974,0.00026994,2]
[426939072,1783032641000,-277.34373104,0.00026994,2]
[426939076,1783032641000,-406.79805706,0.00026994,2]
[426939075,1783032641000,-477.96653899,0.00026994,2]
[426939086,1783032641000,-252.95785521,0.00027036,2]
[426939077,1783032641000,-476.04956018,0.00026994,2]
[426939078,1783032641000,-189.24084267,0.00026994,2]
[426939079,1783032641000,-383.0,0.00027,2]
[426939083,1783032641000,-157.0,0.00027,2]
[426939116,1783032641000,-220.00660679,0.000273,30]
[426939080,1783032641000,-255.0,0.00027,2]
[426939081,1783032641000,-336.0,0.00027,2]
[426939087,1783032641000,-330.83943263,0.00027036,2]
[426939117,1783032641000,-151.47,0.0002731,2]
[426939084,1783032641000,-500.0,0.00027014,2]
[426939120,1783032641000,-500.0,0.00027397,15]
[426939151,1783032641000,-28458.28714796,0.00027456,2]
[426939146,1783032641000,-236.22,0.000274,2]
[426939147,1783032641000,-236.22,0.000274,2]
[426939148,1783032641000,-236.22,0.000274,2]
[426939152,1783032641000,-152.0,0.00027483,5]
[426939154,1783032641000,-539.0,0.000275,11]
[426939165,1783032641000,-381.49671466,0.00027551,2]
[426939155,1783032641000,-625.45803585,0.00027529,2]
[426939160,1783032641000,-199.95211592,0.00027548,2]
[426939163,1783032641000,-218.66398581,0.00027551,2]
[426939164,1783032641000,-198.16443608,0.00027551,2]
[426939162,1783032641000,-485.0,0.0002755,30]
[426939157,1783032641000,-212.38215365,0.00027548,2]
[426939159,1783032641000,-163.64833573,0.00027548,2]
[426939161,1783032641000,-648.34,0.0002755,30]
[426939158,1783032641000,-319.95164087,0.00027548,2]
[426939153,1783032641000,-500.0,0.000275,7]
[426939166,1783032641000,-165.9380636,0.00027551,2]
[426939168,1783032641000,-290.57005018,0.00027551,2]
[426939170,1783032641000,-306.74442674,0.00027551,2]
[426939171,1783032641000,-244.73940062,0.00027551,2]
[426939172,1783032641000,-201.64576125,0.00027551,2]
[426939174,1783032641000,-376.19491378,0.00027551,2]
[426939167,1783032641000,-208.27691093,0.00027551,2]
[426939114,1783032641000,-625.45803585,0.00027255,2]
[426939142,1783032641000,-215.21189417,0.000274,10]
[426939150,1783032641000,-151.0,0.00027419,5]
[426939156,1783032641000,-568.23,0.00027545,2]
[426939140,1783032641000,-452.82458307,0.00027397,2]
[426939145,1783032641000,-236.22,0.000274,2]
[426939121,1783032641000,-500.0,0.00027397,15]
[426939115,1783032641000,-169.00435228,0.00027255,2]
[426939119,1783032641000,-561.01,0.00027397,2]
[426939122,1783032641000,-500.0,0.00027397,15]
[426939118,1783032641000,-154.98925467,0.00027316,2]
[426939129,1783032641000,-300.0,0.00027397,2]
[426939126,1783032641000,-500.0,0.00027397,15]
[426939125,1783032641000,-500.0,0.00027397,15]
[426939127,1783032641000,-1500.0,0.00027397,2]
[426939124,1783032641000,-500.0,0.00027397,15]
[426939128,1783032641000,-252.0,0.00027397,5]
[426939137,1783032641000,-150.94152769,0.00027397,2]
[426939123,1783032641000,-500.0,0.00027397,15]
[426939149,1783032641000,-236.22,0.000274,2]
[426939144,1783032641000,-2117.74,0.000274,7]
[426939136,1783032641000,-776.506228,0.00027397,2]
[426939143,1783032641000,-160.0,0.000274,7]
[426939141,1783032641000,-558.06,0.000274,7]
[426939139,1783032641000,-301.88305538,0.00027397,2]
[426939135,1783032641000,-5118.44,0.00027397,10]
[426939138,1783032641000,-205.43008531,0.00027397,2]
[426939132,1783032641000,-396.027282,0.00027397,2]
[426939131,1783032641000,-396.027282,0.00027397,2]
[426939133,1783032641000,-396.027282,0.00027397,2]
[426939130,1783032641000,-396.027282,0.00027397,2]
[426939134,1783032641000,-6142.13,0.00027397,10]
[426939255,1783032642000,-319.54920007,0.00027593,2]
[426939256,1783032642000,-481.37505755,0.00027593,2]
[426939250,1783032642000,-632.76475992,0.00027593,2]
[426939254,1783032642000,-212.93692286,0.00027593,2]
[426939252,1783032642000,-249.79238317,0.00027593,2]
[426939246,1783032642000,-448.07683969,0.00027593,2]
[426939244,1783032642000,-469.73103894,0.00027593,2]
[426939241,1783032642000,-589.71828032,0.00027593,2]
[426939248,1783032642000,-598.78067172,0.00027593,2]
[426939239,1783032642000,-272.17665575,0.00027593,2]
[426939257,1783032642000,-228.34329624,0.00027593,2]
[426939242,1783032642000,-464.4098368,0.00027593,2]
[426939259,1783032642000,-615.66567048,0.00027593,2]
[426939284,1783032642000,-359.32203807,0.00027593,2]
[426939266,1783032642000,-611.50091586,0.00027593,2]
[426939258,1783032642000,-582.19173588,0.00027593,2]
[426939262,1783032642000,-556.52626528,0.00027593,2]
[426939264,1783032642000,-673.21189188,0.00027593,2]
[426939268,1783032642000,-531.1258753,0.00027593,2]
[426939272,1783032642000,-406.77440886,0.00027593,2]
[426939270,1783032642000,-486.81918325,0.00027593,2]
[426939276,1783032642000,-461.90605814,0.00027593,2]
[426939274,1783032642000,-473.43528985,0.00027593,2]
[426939278,1783032642000,-603.76611076,0.00027593,2]
[426939279,1783032642000,-410.86017061,0.00027593,2]
[426939281,1783032642000,-671.66007339,0.00027593,2]
[426939237,1783032642000,-496.25914894,0.00027593,2]
[426939260,1783032642000,-432.11591781,0.00027593,2]
[426939235,1783032642000,-505.91571042,0.00027593,2]
[426939180,1783032642000,-182.53923308,0.00027551,2]
[426939231,1783032642000,-150.5904672,0.00027584,2]
[426939176,1783032642000,-447.87941547,0.00027551,2]
[426939285,1783032642000,-301.87656617,0.00027593,2]
[426939186,1783032642000,-230.07891307,0.00027551,2]
[426939182,1783032642000,-437.92686645,0.00027551,2]
[426939184,1783032642000,-198.08109889,0.00027551,2]
[426939187,1783032642000,-497.42561469,0.00027551,2]
[426939188,1783032642000,-156.43641278,0.00027551,2]
[426939191,1783032642000,-199.67808095,0.00027551,2]
[426939189,1783032642000,-247.59114268,0.00027551,2]
[426939195,1783032642000,-174.39670117,0.00027551,2]
[426939196,1783032642000,-415.2544763,0.00027551,2]
[426939193,1783032642000,-178.32338398,0.00027551,2]
[426939198,1783032642000,-162.02882278,0.00027551,2]
[426939219,1783032642000,-637.28871865,0.00027551,2]
[426939204,1783032642000,-821.22482684,0.00027551,2]
[426939202,1783032642000,-374.48979882,0.00027551,2]
[426939209,1783032642000,-712.06182263,0.00027551,2]
[426939206,1783032642000,-167.94611917,0.00027551,2]
[426939211,1783032642000,-647.69688502,0.00027551,2]
[426939221,1783032642000,-610.1970856,0.00027551,2]
[426939223,1783032642000,-714.07434026,0.00027551,2]
[426939229,1783032642000,-156.18,0.00027555,30]
[426939226,1783032642000,-182.41,0.00027555,30]
[426939225,1783032642000,-378.48168533,0.00027551,2]
[426939213,1783032642000,-554.68746209,0.00027551,2]
[426939215,1783032642000,-782.67568634,0.00027551,2]
[426939217,1783032642000,-633.55958961,0.00027551,2]
[426939233,1783032642000,-570.9499108,0.00027593,2]
[426939200,1783032642000,-377.03421397,0.00027551,2]
[426939280,1783032642000,-460.96325984,0.00027593,2]
[426939178,1783032642000,-306.89519691,0.00027551,2]
[426939286,1783032642000,-394.42655721,0.00027593,2]
[426939341,1783032642000,-485.0,0.00028033,30]
[426939339,1783032642000,-648.34,0.00028033,30]
[426939343,1783032642000,-625.45803585,0.00028077,2]
[426939329,1783032642000,-160.0,0.00028,2]
[426939335,1783032642000,-157.0,0.00028,2]
[426939347,1783032642000,-2117.74,0.000281,7]
[426939333,1783032642000,-22500.0,0.00028,2]
[426939331,1783032642000,-643.0,0.00028,2]
[426939346,1783032642000,-2000.0,0.00028091,120]
[426939350,1783032642000,-978.34460792,0.00028108,2]
[426939349,1783032642000,-809.62110628,0.00028108,2]
[426939352,1783032642000,-372.0,0.00028156,5]
[426939356,1783032642000,-514.06560759,0.00028249,2]
[426939337,1783032642000,-209.36,0.0002801,120]
[426939351,1783032642000,-923.86431614,0.00028108,2]
[426939357,1783032642000,-182.41,0.00028277,7]
[426939362,1783032642000,-625.45803585,0.00028351,2]
[426939355,1783032642000,-568.23,0.0002823,2]
[426939353,1783032642000,-648.34,0.00028194,7]
[426939359,1783032642000,-289.31,0.000283,7]
[426939360,1783032642000,-1000.0,0.00028315,2]
[426939361,1783032642000,-1000.0,0.00028315,2]
[426939358,1783032642000,-558.06,0.000283,7]
[426939363,1783032642000,-169.00435228,0.00028351,2]